fUST/lending_fUST_20240619
["ID","MTS","AMOUNT","RATE_DAILY","PERIOD"]
[329898426,1718806242073,-500.0,0.00024657,5]
[329898427,1718806242082,-500.0,0.00024657,5]
[329898428,1718806242092,-500.0,0.00024657,5]
[329898429,1718806242101,-500.0,0.00024657,5]
[329898430,1718806242111,-500.0,0.00024657,5]
[329898431,1718806242121,-500.0,0.00024657,5]
[329898432,1718806242130,-500.0,0.00024657,5]
[329898433,1718806242140,-500.64150737,0.00024657,5]
[329898434,1718806242149,-500.0,0.00024657,5]
[329898435,1718806242158,-537.51391168,0.00024657,5]
[329898436,1718806242168,-507.28380526,0.00024657,5]
[329898437,1718806242177,-500.0,0.00024657,5]
[329898438,1718806242186,-507.60408748,0.00024657,5]
[329898439,1718806242196,-295.44789409,0.00024657,5]
[329898440,1718806242210,-204.55210591,0.00024657,5]
[329898441,1718806242220,-500.0,0.00024657,5]
[329898442,1718806242229,-500.0,0.00024657,5]
[329898443,1718806242239,-500.85481312,0.00024657,5]
[329898444,1718806242248,-500.0,0.00024657,5]
[329898445,1718806242258,-500.0,0.00024657,5]
[329898446,1718806242267,-500.0,0.00024657,5]
[329898447,1718806242277,-500.0,0.00024657,5]
[329898448,1718806242288,-500.0,0.00024657,5]
[329898449,1718806242297,-500.0,0.00024657,5]
[329898450,1718806242306,-500.0,0.00024657,5]
[329898451,1718806242315,-500.0,0.00024657,5]
[329898452,1718806242324,-500.0,0.00024657,5]
[329898453,1718806242333,-500.0,0.00024657,5]
[329898454,1718806242343,-500.0,0.00024657,5]
[329898455,1718806242352,-500.0,0.00024657,5]
[329898456,1718806242362,-500.0,0.00024657,5]
[329898457,1718806242371,-500.0,0.00024657,5]
[329898458,1718806242380,-200.0,0.00024657,5]
[329898459,1718806242390,-500.0,0.00024657,5]
[329898460,1718806242399,-500.0,0.00024657,5]
[329898461,1718806242409,-3900.35,0.00024657,5]
[329898462,1718806242418,-500.0,0.00024657,5]
[329898463,1718806242428,-646.87,0.00024657,5]
[329898464,1718806242438,-500.0,0.00024657,5]
[329898465,1718806242447,-500.0,0.00024657,5]
[329898466,1718806242457,-1250.09,0.00024657,5]
[329898467,1718806242467,-500.0,0.00024657,5]
[329898468,1718806242476,-500.0,0.00024657,5]
[329898469,1718806242485,-500.0,0.00024657,5]
[329898470,1718806242495,-835.48,0.00024657,5]
[329898471,1718806242504,-514.83347779,0.00024657,5]
[329898472,1718806242514,-500.0,0.00024657,5]
[329898473,1718806242523,-508.06296826,0.00024657,5]
[329898474,1718806242535,-500.0,0.00024657,5]
[329898475,1718806242544,-500.0,0.00024657,5]
[329898476,1718806242554,-500.0,0.00024657,5]
[329898477,1718806242563,-3520.16,0.00024657,5]
[329898478,1718806242572,-175.60271591,0.00024657,5]
[329898479,1718806242583,-500.0,0.00024657,5]
[329898480,1718806242592,-500.0,0.00024657,5]
[329898481,1718806242602,-500.0,0.00024657,5]
[329898482,1718806242611,-2009.91,0.00024657,5]
[329898483,1718806242621,-6735.03,0.00024657,5]
[329898484,1718806242631,-693.04,0.00024657,5]
[329898485,1718806242641,-500.0,0.00024657,5]
[329898486,1718806242651,-500.0,0.00024657,5]
[329898487,1718806242660,-574.2,0.00024657,5]
[329898488,1718806242670,-500.0,0.00024657,5]
[329898489,1718806242679,-500.0,0.00024657,5]
[329898490,1718806242689,-500.0,0.00024657,5]
[329898491,1718806242698,-500.0,0.00024657,5]
[329898492,1718806242708,-500.0,0.00024657,5]
[329898493,1718806242718,-1286.75,0.00024657,5]
[329898494,1718806242727,-500.0,0.00024657,5]
[329898495,1718806242737,-500.0,0.00024657,5]
[329898496,1718806242746,-500.0,0.00024657,5]
[329898497,1718806242757,-500.0,0.00024657,5]
[329898498,1718806242768,-634.80799017,0.00024657,5]
[329898499,1718806242778,-500.0,0.00024657,5]
[329898500,1718806242789,-500.0,0.00024657,5]
[329898501,1718806242798,-500.0,0.00024657,5]
[329898502,1718806242807,-500.0,0.00024657,5]
[329898503,1718806242816,-500.0,0.00024657,5]
[329898504,1718806242826,-644.88,0.00024657,5]
[329898505,1718806242836,-900.62,0.00024657,5]
[329898506,1718806242845,-500.0,0.00024657,5]
[329898507,1718806242854,-500.0,0.00024657,5]
[329898508,1718806242864,-505.01317579,0.00024657,5]
[329898509,1718806242875,-403.60054057,0.00024657,5]
[329898510,1718806242888,-500.0,0.00024657,5]
[329898511,1718806242898,-500.0,0.00024657,5]
[329898512,1718806242907,-500.0,0.00024657,5]
[329898513,1718806242918,-500.0,0.00024657,5]
[329898514,1718806242928,-500.0,0.00024657,5]
[329898515,1718806242937,-500.0,0.00024657,5]
[329898516,1718806242946,-500.0,0.00024657,5]
[329898517,1718806242956,-500.0,0.00024657,5]
[329898518,1718806242968,-500.0,0.00024657,5]
[329898519,1718806242978,-500.0,0.00024657,5]
[329898520,1718806242987,-8581.35,0.00024657,5]
[329898521,1718806242997,-500.0,0.00024657,5]
[329898522,1718806243007,-500.0,0.00024657,5]
[329898523,1718806243016,-500.46600613,0.00024657,5]
[329898524,1718806243025,-500.0,0.00024657,5]
[329898525,1718806243037,-3495.86,0.00024657,5]
[329898526,1718806243046,-500.0,0.00024657,5]
[329898527,1718806243055,-501.16204252,0.00024657,5]
[329898528,1718806243064,-500.0,0.00024657,5]
[329898529,1718806243073,-500.0,0.00024657,5]
[329898530,1718806243082,-542.82332334,0.00024657,5]
[329898532,1718806243092,-500.0,0.00024657,5]
[329898534,1718806243101,-500.0,0.00024657,5]
[329898536,1718806243110,-500.0,0.00024657,5]
[329898538,1718806243119,-522.21160075,0.00024657,5]
[329898540,1718806243128,-500.0,0.00024657,5]
[329898542,1718806243138,-500.0,0.00024657,5]
[329898543,1718806243147,-1922.62,0.00024657,5]
[329898545,1718806243156,-500.0,0.00024657,5]
[329898547,1718806243165,-500.0,0.00024657,5]
[329898549,1718806243174,-500.0,0.00024657,5]
[329898551,1718806243183,-256.81931842,0.00024657,5]
[329898553,1718806243193,-513.95204041,0.00024657,5]
[329898555,1718806243202,-576.02871036,0.00024657,5]
[329898557,1718806243212,-500.0,0.00024657,5]
[329898559,1718806243220,-2566.6,0.00024657,5]
[329898561,1718806243230,-500.0,0.00024657,5]
[329898563,1718806243239,-500.0,0.00024657,5]
[329898565,1718806243248,-500.0,0.00024657,5]
[329898567,1718806243257,-500.0,0.00024657,5]
[329898569,1718806243267,-169.73002723,0.00024657,5]
[329898571,1718806243276,-10930.19,0.00024657,5]
[329898573,1718806243287,-780.69,0.00024657,5]
[329898575,1718806243301,-500.0,0.00024657,5]
[329898576,1718806243310,-500.0,0.00024657,5]
[329898578,1718806243319,-500.0,0.00024657,5]
[329898579,1718806243328,-758.21,0.00024657,5]
[329898581,1718806243337,-500.0,0.00024657,5]
[329898582,1718806243346,-500.0,0.00024657,5]
[329898584,1718806243355,-500.0,0.00024657,5]
[329898586,1718806243364,-500.0,0.00024657,5]
[329898588,1718806243373,-500.0,0.00024657,5]
[329898590,1718806243382,-500.0,0.00024657,5]
[329898592,1718806243391,-503.23546092,0.00024657,5]
[329898593,1718806243400,-500.0,0.00024657,5]
[329898595,1718806243410,-500.0,0.00024657,5]
[329898597,1718806243419,-500.0,0.00024657,5]
[329898599,1718806243428,-500.0,0.00024657,5]
[329898601,1718806243437,-500.0,0.00024657,5]
[329898603,1718806243447,-500.0,0.00024657,5]
[329898605,1718806243457,-500.0,0.00024657,5]
[329898607,1718806243467,-1924.21,0.00024657,5]
[329898608,1718806243476,-500.0,0.00024657,5]
[329898609,1718806243486,-500.0,0.00024657,5]
[329898610,1718806243496,-500.0,0.00024657,5]
[329898611,1718806243506,-1924.21,0.00024657,5]
[329898612,1718806243516,-500.0,0.00024657,5]
[329898613,1718806243526,-1400.21,0.00024657,5]
[329898614,1718806243538,-500.0,0.00024657,5]
[329898615,1718806243548,-500.0,0.00024657,5]
[329898616,1718806243558,-500.0,0.00024657,5]
[329898618,1718806243567,-500.0,0.00024657,5]
[329898620,1718806243577,-500.0,0.00024657,5]
[329898621,1718806243587,-500.0,0.00024657,5]
[329898622,1718806243597,-500.0,0.00024657,5]
[329898623,1718806243606,-500.0,0.00024657,5]
[329898624,1718806243616,-500.0,0.00024657,5]
[329898625,1718806243626,-1377.99348557,0.00024726,2]
[329898626,1718806243635,-366.0,0.0002475,2]
[329898627,1718806243645,-1377.99348557,0.00024811,2]
[329898629,1718806243654,-1377.99348557,0.00024895,2]
[329898631,1718806243664,-1924.21,0.0002493,5]
[329898632,1718806243673,-1924.21,0.0002493,5]
[329898633,1718806243683,-500.0,0.00024931,5]
[329898634,1718806243692,-364.69335399,0.00024931,5]
[329898635,1718806243701,-500.0,0.00024931,5]
[329898636,1718806243710,-500.0,0.00024931,5]
[329898637,1718806243719,-500.0,0.00024931,5]
[329898638,1718806243728,-51.42722765,0.00024931,5]
[329898640,1718806244020,-448.57277235,0.00024931,5]
[329898641,1718806244030,-500.0,0.00024931,5]
[329898642,1718806244039,-500.0,0.00024931,5]
[329898643,1718806244144,-500.0,0.00024931,5]
[329898644,1718806244154,-388.27480797,0.00024931,5]
[329898645,1718806244165,-500.0,0.00024931,5]
[329898646,1718806244174,-431.00371874,0.00024931,5]
[329898647,1718806244185,-516.76449459,0.00024931,5]
[329898648,1718806244194,-500.0,0.00024931,5]
[329898649,1718806244204,-500.0,0.00024931,5]
[329898650,1718806244214,-500.0,0.00024931,5]
[329898651,1718806244224,-500.0,0.00024931,5]
[329898652,1718806244234,-500.0,0.00024931,5]
[329898653,1718806244244,-118.03796866,0.00024931,5]
[329898654,1718806244300,-381.96203134,0.00024931,5]
[329898655,1718806244310,-487.98388079,0.00024931,5]
[329898656,1718806244321,-12.01611921,0.00024931,5]
[329898657,1718806244331,-318.27717317,0.00024931,5]
[329898658,1718806244343,-181.72282683,0.00024931,5]
[329898659,1718806244352,-517.29434699,0.00024931,5]
[329898660,1718806244361,-500.0,0.00024931,5]
[329898661,1718806244371,-500.0,0.00024931,5]
[329898662,1718806244381,-311.34461124,0.00024931,5]
[329898663,1718806244394,-190.0759022,0.00024931,5]
[329898664,1718806244403,-500.0,0.00024931,5]
[329898665,1718806244413,-500.0,0.00024931,5]
[329898666,1718806244422,-419.9240978,0.00024931,5]
[329898667,1718806244434,-80.0759022,0.00024931,5]
[329898668,1718806244443,-152.85500604,0.00024931,5]
[329898669,1718806244453,-500.0,0.00024931,5]
[329898670,1718806244463,-500.0,0.00024931,5]
[329898671,1718806244473,-166.8143171,0.00024931,5]
[329898672,1718806244486,-333.1856829,0.00024931,5]
[329898673,1718806244495,-99.03149094,0.00024931,5]
[329898691,1718806246874,-466.16787958,0.00024657,5]
[329898812,1718806316862,264.9350812,9.999e-05,2]
[329898813,1718806316895,1167.97821339,9.999e-05,2]
[329898814,1718806318856,154.81422293,9.999e-05,2]
[329898824,1718806395008,928.52788957,9.999e-05,2]
[329898828,1718806899494,159.64948019,9.999e-05,2]
[329898840,1718807167349,13007.27382637,9.999e-05,2]
[329898857,1718807205666,7226.26323687,9.999e-05,2]
[329898865,1718807226242,-307.93164576,0.00014999,2]
[329898866,1718807231360,7226.26323687,9.999e-05,2]
[329898867,1718807249236,-242.06835424,0.00014999,2]
[329898868,1718807249375,3764.88314641,9.999e-05,2]
[329898869,1718807250141,-933.13869274,0.00014999,2]
[329898870,1718807265348,3764.88314641,9.999e-05,2]
[329898872,1718807289619,3764.88314641,9.999e-05,2]
[329898874,1718807311867,3764.88314641,9.999e-05,2]
[329898877,1718807325865,3764.88314641,9.999e-05,2]
[329898879,1718807345156,-653.24490868,0.00014999,2]
[329898880,1718807345178,-178.08533369,0.00015,2]
[329898881,1718807345199,-1304.12167784,0.00015,2]
[329898882,1718807345861,212.60883189,9.999e-05,2]
[329898883,1718807345894,3552.27431452,9.999e-05,2]
[329898884,1718807367859,3764.88314641,9.999e-05,2]
[329898886,1718807381857,3764.88314641,9.999e-05,2]
[329898888,1718807401873,3764.88314641,9.999e-05,2]
[329898891,1718807425863,3764.88314641,9.999e-05,2]
[329898943,1718807432891,-2629.63635637,0.00015925,2]
[329898965,1718807433237,-134.87616653,0.00015925,2]
[329898967,1718807433247,-229.372618,0.0001593,2]
[329898968,1718807433256,-432.34794589,0.00016831,2]
[329898969,1718807433266,-1303.26705907,0.00016911,2]
[329898970,1718807433276,-42150.54498866,0.00016927,2]
[329898971,1718807433285,-300.0,0.00016927,2]
[329898972,1718807433295,-136.28086808,0.00016928,2]
[329899277,1718807439149,-4795.79038694,0.00016928,2]
[329899379,1718807441773,-54717.10320171,0.00016928,2]
[329899380,1718807441785,-300.0,0.00016928,2]
[329899381,1718807441795,-1046.5325503,0.00016933,2]
[329899382,1718807441805,-20885.199339,0.00016945,2]
[329899383,1718807441814,-825.44569832,0.00018,2]
[329899384,1718807441824,-1306.06068608,0.00018,2]
[329899385,1718807441834,-201.70044356,0.00018491,2]
[329899386,1718807441843,-2572.62512844,0.000189,2]
[329899387,1718807441853,-159.60935965,0.00018984,2]
[329899388,1718807441863,-175.8540668,0.00018985,2]
[329899389,1718807441873,-618.37714131,0.00019088,2]
[329899390,1718807441883,-24690.99235515,0.00019091,2]
[329899391,1718807441895,-1111.59701229,0.00019091,2]
[329899565,1718807444571,-855.0,0.00019091,2]
[329899566,1718807444583,-4714.65230428,0.00019091,2]
[329899567,1718807444595,-539.81782293,0.00019091,2]
[329899568,1718807444605,-160.57216641,0.00019178,2]
[329899569,1718807444614,-485.66514419,0.00019178,2]
[329899570,1718807444624,-177.92147722,0.00021096,2]
[329899660,1718807445994,1407.83540152,9.999e-05,2]
[329899770,1718807447251,-572.07852278,0.00021096,2]
[329899772,1718807447261,-800.24615292,0.00021515,2]
[329899775,1718807447271,-155.21678017,0.00021516,2]
[329899777,1718807447280,-166.666666,0.00022359,2]
[329899778,1718807447292,-166.666666,0.00022968,2]
[329899779,1718807447301,-166.666666,0.00023578,2]
[329899780,1718807447317,-229.372618,0.00023895,2]
[329899781,1718807447326,-594.54372319,0.000239,2]
[329899782,1718807447338,-326.11,0.000239,2]
[329899783,1718807447350,-1651.97140525,0.000239,2]
[329899784,1718807447359,-166.666666,0.00024187,2]
[329899785,1718807447368,-918.55283601,0.00024419,2]
[329899786,1718807447377,-240.12086796,0.00024652,4]
[329899787,1718807447386,-159.51474051,0.00024654,2]
[329899788,1718807447398,-476.97437791,0.00024654,2]
[329899789,1718807447407,-127.35559858,0.00024654,2]
[329899911,1718807466165,156.53229933,9.999e-05,2]
[329899912,1718807466192,1276.38099526,9.999e-05,2]
[329899913,1718807472572,273.37336231,9.9e-05,2]
[329899915,1718807486620,317.85200074,9.999e-05,2]
[329899916,1718807486731,1283.39101905,9.999e-05,2]
[329899917,1718807489379,154.81422293,9.999e-05,2]
[329899918,1718807491461,154.81422293,9.999e-05,2]
[329899919,1718807491566,775.66323362,9.999e-05,2]
[329899920,1718807507631,157.09036471,9.999e-05,2]
[329899921,1718807510596,242.68174868,9.999e-05,2]
[329899923,1718807540226,411.30226265,9.999e-05,2]
[329899924,1718807540256,112.73479589,9.999e-05,2]
[329899925,1718807542847,208.63630617,9.999e-05,2]
[329899926,1718807665499,89.93116059,9.999e-05,2]
[329899927,1718807665531,65.07969017,9.999e-05,2]
[329899929,1718807692824,346.22257248,9.999e-05,2]
[329899930,1718807692855,411.30226265,9.999e-05,2]
[329899931,1718807692889,411.30226265,9.999e-05,2]
[329899932,1718807692920,175.9526729,9.999e-05,2]
[329899936,1718807823393,18.4619133,0.00010959,2]
[329899937,1718807823418,231.0180867,0.00010959,2]
[329899938,1718807833943,207.9,0.00010959,2]
[329899940,1718807844580,173.25,0.00010959,2]
[329899941,1718807855260,866.3,0.00010959,2]
[329899942,1718807891741,159.64948019,9.999e-05,2]
[329899943,1718807902068,1432.91329459,9.999e-05,2]
[329899961,1718808400110,-250.0,0.0001496,2]
[329899962,1718808400131,-229.372619,0.00015772,2]
[329899963,1718808400154,-504.79117663,0.000159,2]
[329899964,1718808400176,-3899.01183781,0.0001592,2]
[329899965,1718808400197,-4351.91856976,0.00015999,2]
[329899967,1718808435113,-218.7235122,0.00015999,2]
[329899968,1718808449458,-599.46307142,0.00015999,2]
[329899972,1718808563120,-397.21696928,0.00015999,2]
[329899974,1718808590210,250.78339156,9.9e-05,2]
[329899975,1718808590238,22.58997075,9.9e-05,2]
[329899976,1718808598330,159.64948019,9.999e-05,2]
[329899977,1718808599026,273.37336231,9.9e-05,2]
[329899978,1718808605835,155.0,0.000225,30]
[329899979,1718808609509,249.46763004,9.9e-05,2]
[329899980,1718808610876,155.0,0.000225,30]
[329899981,1718808615590,155.0,0.000225,30]
[329899982,1718808615758,270.4560134,9.9e-05,2]
[329899983,1718808618587,273.37336231,9.9e-05,2]
[329899984,1718808620136,155.0,0.000225,30]
[329899985,1718808624688,1432.91329459,9.999e-05,2]
[329899986,1718808624746,155.0,0.000225,30]
[329899987,1718808629613,155.0,0.000225,30]
[329899988,1718808631713,509.45109603,9.999e-05,2]
[329900017,1718808632522,-245.7576,0.00015997,2]
[329900020,1718808632532,-159.58929938,0.00015997,2]
[329900022,1718808632542,-525.00342598,0.00015998,2]
[329900023,1718808632551,-502.46072762,0.00016,2]
[329900170,1718808634229,155.0,0.000225,30]
[329900635,1718808639147,155.0,0.000225,30]
[329900644,1718808639241,-1514.21372609,0.00016,2]
[329900810,1718808640816,-717.67575918,0.00016,2]
[329900811,1718808640825,-107.06424082,0.00016,2]
[329900812,1718808640838,-1249.74476682,0.00016,2]
[329900813,1718808640847,-42150.54498866,0.00016087,2]
[329900814,1718808640857,-9575.37834935,0.00016088,2]
[329900815,1718808640867,-364.25882633,0.00016822,2]
[329900816,1718808640876,-1199.35567727,0.00016824,2]
[329900817,1718808640885,-1153.49859887,0.00016904,2]
[329900818,1718808640895,-272.67145618,0.00016918,2]
[329900819,1718808640904,-1343.10450819,0.00016918,2]
[329900820,1718808640914,-774.88930462,0.00016921,2]
[329900821,1718808640923,-270.1256424,0.00016921,2]
[329900822,1718808640932,-191.64239779,0.00016921,2]
[329900823,1718808640941,-242.40890473,0.00016921,2]
[329900824,1718808640951,-208.12922744,0.00016921,2]
[329900825,1718808640963,-159.16840036,0.00016921,2]
[329900826,1718808640972,-1502.45547554,0.00016921,2]
[329900827,1718808640984,-155.01240099,0.00016921,2]
[329900828,1718808640994,-450.50760917,0.00016921,2]
[329900829,1718808641003,-733.71925611,0.00016921,2]
[329900830,1718808641013,-1511.44701844,0.00016921,2]
[329900831,1718808641023,-155.01550155,0.00016921,2]
[329900832,1718808641032,-415.31107993,0.00016922,2]
[329900833,1718808641042,-155.24158377,0.00016922,2]
[329900834,1718808641052,-946.80961534,0.00016924,2]
[329900835,1718808641062,-1101.81251075,0.00016924,2]
[329900836,1718808641071,-1592.91784477,0.00016924,2]
[329900837,1718808641080,-601.71694869,0.00016924,2]
[329900838,1718808641089,-508.86774249,0.00016924,2]
[329900839,1718808641098,-158.10213533,0.00016924,2]
[329900840,1718808641108,-155.02015262,0.00016924,2]
[329900841,1718808641117,-2645.10006487,0.00016924,2]
[329900842,1718808641127,-3863.5618426,0.00016924,2]
[329900843,1718808641136,-155.10384293,0.00016924,2]
[329900844,1718808641146,-2475.76048699,0.00016924,2]
[329900845,1718808641155,-155.02170304,0.00016924,2]
[329900846,1718808641164,-683.49371319,0.00016924,2]
[329900847,1718808641173,-552.71924724,0.00016924,2]
[329900848,1718808641182,-155.11425434,0.00016924,2]
[329900849,1718808641192,-1311.03814781,0.00016924,2]
[329900850,1718808641201,-228.60725406,0.00016924,2]
[329900851,1718808641212,-1075.07685851,0.00016925,2]
[329900852,1718808641221,-3657.18838135,0.00016925,2]
[329900853,1718808641233,-1500.0343278,0.00016925,2]
[329900854,1718808641245,-7077.35190294,0.00016925,2]
[329900855,1718808641255,-3930.79403824,0.000175,2]
[329900856,1718808641264,-1393.6,0.00017706,2]
[329900857,1718808641273,-206.3,0.00017706,2]
[329900858,1718808641282,-177.43304783,0.00018,2]
[329900859,1718808641291,-476.97437791,0.00018,2]
[329900860,1718808641300,-17854.86989324,0.00018,2]
[329900861,1718808641310,-825.44569832,0.00018,2]
[329900863,1718808641319,-607.19060049,0.000185,2]
[329900864,1718808641328,-1199.35567724,0.00018757,2]
[329900866,1718808641338,-857.54170948,0.000189,2]
[329900868,1718808641348,-163.25901194,0.00019,2]
[329900870,1718808641358,-31340.22313973,0.00019176,2]
[329900872,1718808641367,-29157.80621485,0.00019177,2]
[329900874,1718808641377,-500.0,0.00019178,2]
[329900876,1718808641386,-500.0,0.00019178,2]
[329900878,1718808641396,-500.0,0.00019178,2]
[329900879,1718808641405,-500.0,0.00019178,2]
[329900880,1718808641415,-500.0,0.00019178,2]
[329900881,1718808641425,-500.0,0.00019178,2]
[329900882,1718808641434,-500.0,0.00019178,2]
[329900883,1718808641443,-500.0,0.00019178,2]
[329900884,1718808641452,-500.0,0.00019178,2]
[329900885,1718808641462,-500.0,0.00019178,2]
[329900886,1718808641472,-500.0,0.00019178,2]
[329900887,1718808641481,-451.14164262,0.00019178,2]
[329900888,1718808641491,-500.0,0.00019178,2]
[329900889,1718808641500,-500.0,0.00019178,2]
[329900890,1718808641509,-500.0,0.00019178,2]
[329900891,1718808641519,-172.27592795,0.00019178,2]
[329900892,1718808641528,-576.20223801,0.00019178,2]
[329900893,1718808641537,-300.0,0.00019178,2]
[329900894,1718808641547,-500.0,0.00019178,2]
[329900895,1718808641557,-182.05931999,0.00019178,2]
[329900896,1718808641566,-285.40045164,0.00019178,2]
[329900897,1718808641578,-214.59954836,0.00019178,2]
[329900898,1718808641588,-450.0,0.00019178,2]
[329900899,1718808641598,-500.0,0.00019178,2]
[329900900,1718808641607,-500.0,0.00019178,2]
[329900901,1718808641617,-500.0,0.00019178,2]
[329900902,1718808641626,-500.0,0.00019178,2]
[329900903,1718808641635,-500.0,0.00019178,2]
[329900904,1718808641645,-500.0,0.00019178,2]
[329900905,1718808641655,-500.0,0.00019178,2]
[329900906,1718808641664,-500.0,0.00019178,2]
[329900907,1718808641673,-550.0,0.00019178,2]
[329900908,1718808641683,-500.0,0.00019178,2]
[329900909,1718808641692,-500.0,0.00019178,2]
[329900910,1718808641702,-356.59685142,0.00019178,2]
[329900911,1718808641715,-500.0,0.00019178,2]
[329900912,1718808641724,-500.0,0.00019178,2]
[329900913,1718808641733,-500.0,0.00019178,2]
[329900914,1718808641742,-500.0,0.00019178,2]
[329900915,1718808641753,-500.0,0.00019178,2]
[329900916,1718808641762,-500.0,0.00019178,2]
[329900917,1718808641874,-500.0,0.00019178,2]
[329900918,1718808641885,-370.39960294,0.00019178,2]
[329900919,1718808641894,-500.0,0.00019178,2]
[329900920,1718808641904,-500.0,0.00019178,2]
[329900921,1718808641914,-500.0,0.00019178,2]
[329900922,1718808641923,-500.0,0.00019178,2]
[329900923,1718808641934,-500.0,0.00019178,2]
[329900924,1718808641945,-500.0,0.00019178,2]
[329900925,1718808641955,-500.0,0.00019178,2]
[329900926,1718808641964,-500.0,0.00019178,2]
[329900927,1718808641973,-500.0,0.00019178,2]
[329900928,1718808641983,-500.0,0.00019178,2]
[329900929,1718808641992,-500.0,0.00019178,2]
[329900930,1718808642001,-500.0,0.00019178,2]
[329900931,1718808642011,-500.0,0.00019178,2]
[329900932,1718808642020,-500.0,0.00019178,2]
[329900933,1718808642029,-500.0,0.00019178,2]
[329900934,1718808642040,-500.0,0.00019178,2]
[329900935,1718808642050,-500.0,0.00019178,2]
[329900936,1718808642060,-500.0,0.00019178,2]
[329900937,1718808642071,-247.68517388,0.00019178,2]
[329900938,1718808642081,-500.0,0.00019178,2]
[329900939,1718808642091,-500.0,0.00019178,2]
[329900940,1718808642101,-500.0,0.00019178,2]
[329900941,1718808642112,-500.0,0.00019178,2]
[329900942,1718808642122,-500.0,0.00019178,2]
[329900943,1718808642131,-258.96514659,0.00019178,2]
[329900944,1718808642145,-241.03485341,0.00019178,2]
[329900945,1718808642155,-500.0,0.00019178,2]
[329900946,1718808642164,-500.0,0.00019178,2]
[329900947,1718808642174,-746.68809414,0.00019178,2]
[329900948,1718808642184,-500.0,0.00019178,2]
[329900949,1718808642194,-746.68809414,0.00019178,2]
[329900950,1718808642206,-500.0,0.00019178,2]
[329900951,1718808642221,-746.68809414,0.00019178,2]
[329900952,1718808642231,-500.0,0.00019178,2]
[329900953,1718808642241,-746.68809414,0.00019178,2]
[329900954,1718808642251,-500.0,0.00019178,2]
[329900955,1718808642261,-746.68809414,0.00019178,2]
[329900956,1718808642271,-500.0,0.00019178,2]
[329900957,1718808642281,-746.68809414,0.00019178,2]
[329900958,1718808642290,-500.0,0.00019178,2]
[329900959,1718808642299,-746.68809414,0.00019178,2]
[329900960,1718808642308,-500.0,0.00019178,2]
[329900961,1718808642317,-746.68809414,0.00019178,2]
[329900962,1718808642326,-500.0,0.00019178,2]
[329900963,1718808642335,-746.68809414,0.00019178,2]
[329900964,1718808642345,-746.68809414,0.00019178,2]
[329900965,1718808642355,-630.0,0.00019178,2]
[329900966,1718808642364,-746.68809414,0.00019178,2]
[329900967,1718808642374,-500.0,0.00019178,2]
[329900968,1718808642383,-457.98070939,0.00019178,2]
[329900969,1718808642540,-288.70738475,0.00019178,2]
[329900970,1718808642550,-746.68809414,0.00019178,2]
[329900971,1718808642560,-746.68809414,0.00019178,2]
[329900972,1718808642570,-746.68809414,0.00019178,2]
[329900973,1718808642580,-500.0,0.00019178,2]
[329900974,1718808642589,-746.68809414,0.00019178,2]
[329900975,1718808642599,-746.68809414,0.00019178,2]
[329900976,1718808642609,-746.68809414,0.00019178,2]
[329900977,1718808642619,-500.0,0.00019178,2]
[329900978,1718808642629,-746.68809414,0.00019178,2]
[329900979,1718808642639,-500.0,0.00019178,2]
[329900980,1718808642648,-746.68809414,0.00019178,2]
[329900981,1718808642658,-746.68809414,0.00019178,2]
[329900982,1718808642667,-746.68809414,0.00019178,2]
[329900983,1718808642678,-746.68809414,0.00019178,2]